fUSD/lending_fUSD_20240531
["ID","MTS","AMOUNT","RATE_DAILY","PERIOD"]
[328308492,1717140649747,-150.0,0.00028356,2]
[328308493,1717140649756,-421.7,0.00028356,2]
[328308494,1717140649765,-150.0,0.00028356,2]
[328308495,1717140649775,-421.7,0.00028356,2]
[328308496,1717140649784,-163.84,0.00028356,2]
[328308497,1717140649793,-300.0,0.00028356,2]
[328308498,1717140649806,-352.63,0.00028356,2]
[328308499,1717140649815,-150.0,0.00028356,2]
[328308500,1717140649824,-150.0,0.00028356,2]
[328308501,1717140649834,-163.84,0.00028356,2]
[328308502,1717140649844,-421.7,0.00028356,2]
[328308503,1717140649854,-352.63,0.00028356,2]
[328308504,1717140649863,-421.7,0.00028356,2]
[328308505,1717140649872,-163.84,0.00028356,2]
[328308506,1717140649883,-150.0,0.00028356,2]
[328308507,1717140649893,-239.96,0.00028356,2]
[328308508,1717140649902,-421.7,0.00028356,2]
[328308509,1717140649911,-163.84,0.00028356,2]
[328308510,1717140649920,-421.7,0.00028356,2]
[328308511,1717140649930,-163.84,0.00028356,2]
[328308512,1717140649940,-527.12,0.00028356,2]
[328308513,1717140649949,-325.27,0.00028356,2]
[328308514,1717140649958,-150.0,0.000284,5]
[328308515,1717140649967,-150.0,0.000289,6]
[328308516,1717140649976,-176.96,0.00028982,2]
[328308517,1717140649985,-1000.0,0.00029,7]
[328308518,1717140649994,-1000.0,0.00029,7]
[328308519,1717140650004,-1000.0,0.00029,7]
[328308520,1717140650015,-1000.0,0.00029,7]
[328308521,1717140650024,-5000.0,0.00029,7]
[328308522,1717140650033,-1483.97277034,0.00029,2]
[328308523,1717140650042,-646.62848398,0.0002905,2]
[328308524,1717140650051,-1507.92571907,0.0002905,2]
[328308525,1717140650064,-150.0,0.000294,6]
[328308526,1717140650073,-151.24,0.00029452,2]
[328308527,1717140650084,-314.494666,0.000295,2]
[328308528,1717140650094,-1528.845614,0.000295,2]
[328308529,1717140650103,-1596.22393471,0.00029691,2]
[328308530,1717140650112,-471.742,0.000298,2]
[328308531,1717140650122,-2293.268421,0.000298,2]
[328308532,1717140650132,-1000.0,0.000298,2]
[328308533,1717140650141,-1247.93,0.000298,2]
[328308534,1717140650152,-1034.752238,0.00029936,2]
[328308535,1717140650162,-521.853962,0.00029936,2]
[328308536,1717140650171,-526.96319,0.00029936,2]
[328308537,1717140650180,-628.989333,0.0003,2]
[328308538,1717140650191,-3057.691228,0.0003,2]
[328308539,1717140650200,-637.0,0.0003,7]
[328308540,1717140650210,-155.16253671,0.0003,4]
[328308541,1717140650219,-2435.39188221,0.0003,2]
[328308542,1717140650229,-1011.42165644,0.0003,10]
[328308543,1717140650238,-1000.0,0.0003,7]
[328308544,1717140650248,-1000.0,0.0003,7]
[328308545,1717140650258,-1000.0,0.0003,7]
[328308546,1717140650269,-1071.44,0.0003,8]
[328308547,1717140650279,-1007.0,0.0003,8]
[328308548,1717140650289,-472.0,0.0003,7]
[328308549,1717140650299,-240.17541587,0.0003,4]
[328308550,1717140650308,-12662.80967559,0.0003,4]
[328308551,1717140650318,-1700.9,0.0003,2]
[328308552,1717140650473,-685.69310138,0.0003,4]
[328308553,1717140650482,-151.0,0.0003,7]
[328308554,1717140650491,-1507.84,0.0003,2]
[328308555,1717140650501,-150.0,0.0003,2]
[328308556,1717140650510,-150.0,0.0003,2]
[328308557,1717140650519,-150.0,0.0003,2]
[328308558,1717140650529,-30000.0,0.000301,4]
[328308559,1717140650538,-380.88466403,0.00030186,2]
[328308560,1717140650547,-786.236667,0.000302,2]
[328308561,1717140650556,-3822.114035,0.000302,2]
[328308562,1717140650566,-171.62,0.0003031,2]
[328308563,1717140650575,-1034.752238,0.0003031,2]
[328308564,1717140650584,-521.853962,0.0003031,2]
[328308565,1717140650593,-526.96319,0.0003031,2]
[328308566,1717140650602,-1100.731333,0.000305,2]
[328308567,1717140650611,-5350.959649,0.000305,2]
[328308568,1717140650620,-1034.752238,0.00030685,2]
[328308569,1717140650629,-521.853962,0.00030685,2]
[328308570,1717140650638,-526.96319,0.00030685,2]
[328308571,1717140650648,-1257.978667,0.000308,2]
[328308572,1717140650658,-6115.382456,0.000308,2]
[328308573,1717140650667,-163.84,0.00030822,2]
[328308574,1717140650676,-159.606924,0.0003088,5]
[328308575,1717140650685,-1000.0,0.00031,9]
[328308576,1717140650694,-1000.0,0.00031,9]
[328308577,1717140650703,-150.0,0.00031,10]
[328308578,1717140650712,-800.0,0.00031,4]
[328308579,1717140650722,-157.43,0.00031007,2]
[328308580,1717140650731,-1034.752238,0.00031059,2]
[328308581,1717140650743,-521.853962,0.00031059,2]
[328308582,1717140650752,-526.96319,0.00031059,2]
[328308583,1717140650761,-4371.0,0.000311,4]
[328308584,1717140650771,-356.78319132,0.000312,2]
[328308585,1717140650781,-176.96,0.00031246,2]
[328308586,1717140650790,-152.0,0.0003127,3]
[328308587,1717140650801,-1247.93,0.000313,2]
[328308588,1717140650815,-25016.95539265,0.00031397,2]
[328308589,1717140650824,-1507.84,0.000314,2]
[328308590,1717140650834,-1034.752238,0.00031433,2]
[328308591,1717140650844,-521.853962,0.00031433,2]
[328308592,1717140650854,-526.96319,0.00031433,2]
[328308593,1717140650863,-1596.22393471,0.00031445,3]
[328308594,1717140650872,-1105.97314294,0.00031799,15]
[328308595,1717140650884,-151.0,0.000318,7]
[328308596,1717140650892,-151.0,0.000318,7]
[328308597,1717140650902,-151.0,0.000318,7]
[328308598,1717140650911,-151.0,0.000318,7]
[328308599,1717140650920,-151.0,0.000318,7]
[328308600,1717140650929,-155.549497,0.000318,7]
[328308601,1717140650938,-151.0,0.000318,7]
[328308602,1717140650947,-151.0,0.000318,7]
[328308603,1717140650956,-78537.89232422,0.000318,2]
[328308604,1717140650965,-153.97246249,0.00031951,7]
[328308605,1717140650975,-150.0,0.00031999,7]
[328308606,1717140650984,-513.4260574,0.00032,6]
[328308607,1717140650993,-5000.0,0.00032,2]
[328308608,1717140651002,-897.69917827,0.00032,2]
[328308609,1717140651011,-1500.0,0.00032,14]
[328308610,1717140651020,-433.77447818,0.00032,4]
[328308611,1717140651030,-1000.0,0.00032,10]
[328308612,1717140651039,-4019.72892624,0.00032,10]
[328308613,1717140651048,-874.35314998,0.00032,10]
[328308614,1717140651058,-600.0,0.00032,4]
[328308615,1717140651068,-151.74289188,0.00032,10]
[328308616,1717140651077,-152.936736,0.00032,7]
[328308617,1717140651086,-734.01198043,0.00032,4]
[328308618,1717140651096,-825.02884782,0.00032,4]
[328308619,1717140651105,-1414.40992256,0.00032,2]
[328308620,1717140651114,-1414.40992256,0.00032,2]
[328308621,1717140651123,-1414.40992256,0.00032,2]
[328308622,1717140651134,-1414.40992256,0.00032,2]
[328308623,1717140651143,-1414.40992256,0.00032,2]
[328308624,1717140651152,-1414.40992256,0.00032,2]
[328308625,1717140651161,-1414.40992256,0.00032,2]
[328308626,1717140651170,-1414.40992256,0.00032,2]
[328308627,1717140651179,-1414.40992256,0.00032,2]
[328308628,1717140651188,-1414.40992256,0.00032,2]
[328308629,1717140651197,-1414.40992256,0.00032,2]
[328308630,1717140651206,-1414.40992256,0.00032,2]
[328308631,1717140651216,-1414.40992256,0.00032,2]
[328308632,1717140651224,-1414.40992256,0.00032,2]
[328308633,1717140651234,-1414.40992256,0.00032,2]
[328308634,1717140651243,-1414.40992256,0.00032,2]
[328308635,1717140651252,-1414.40992256,0.00032,2]
[328308636,1717140651262,-1414.40992256,0.00032,2]
[328308637,1717140651271,-1414.40992256,0.00032,2]
[328308638,1717140651279,-1414.40992256,0.00032,2]
[328308639,1717140651289,-1414.40992256,0.00032,2]
[328308640,1717140651298,-1414.40992256,0.00032,2]
[328308641,1717140651307,-1414.40992256,0.00032,2]
[328308642,1717140651316,-1414.40992256,0.00032,2]
[328308643,1717140651326,-1414.40992256,0.00032,2]
[328308644,1717140651335,-1414.40992256,0.00032,2]
[328308645,1717140651349,-1414.40992256,0.00032,2]
[328308646,1717140651358,-1414.40992256,0.00032,2]
[328308647,1717140651367,-1414.40992256,0.00032,2]
[328308648,1717140651377,-1414.40992256,0.00032,2]
[328308649,1717140651387,-1414.40992256,0.00032,2]
[328308650,1717140651396,-1414.40992256,0.00032,2]
[328308651,1717140651405,-1414.40992256,0.00032,2]
[328308652,1717140651416,-1414.40992256,0.00032,2]
[328308653,1717140651426,-1414.40992256,0.00032,2]
[328308654,1717140651436,-1414.40992256,0.00032,2]
[328308655,1717140651446,-1414.40992256,0.00032,2]
[328308656,1717140651456,-1414.40992256,0.00032,2]
[328308657,1717140651467,-1414.40992256,0.00032,2]
[328308658,1717140651478,-1414.40992256,0.00032,2]
[328308659,1717140651488,-1414.40992256,0.00032,2]
[328308660,1717140651498,-1414.40992256,0.00032,2]
[328308661,1717140651510,-1414.40992256,0.00032,2]
[328308662,1717140651521,-1414.40992256,0.00032,2]
[328308663,1717140651531,-1414.40992256,0.00032,2]
[328308664,1717140651541,-1414.40992256,0.00032,2]
[328308665,1717140651553,-1414.40992256,0.00032,2]
[328308666,1717140651564,-1414.40992256,0.00032,2]
[328308667,1717140651575,-1414.40992256,0.00032,2]
[328308668,1717140651586,-1414.40992256,0.00032,2]
[328308669,1717140651597,-1414.40992256,0.00032,2]
[328308670,1717140651606,-1414.40992256,0.00032,2]
[328308671,1717140651615,-1414.40992256,0.00032,2]
[328308672,1717140651626,-1414.40992256,0.00032,2]
[328308673,1717140651635,-1414.40992256,0.00032,2]
[328308674,1717140651644,-1414.40992256,0.00032,2]
[328308675,1717140651654,-1414.40992256,0.00032,2]
[328308676,1717140651664,-1414.40992256,0.00032,2]
[328308677,1717140651673,-1414.40992256,0.00032,2]
[328308678,1717140651683,-1414.40992256,0.00032,2]
[328308679,1717140651693,-1414.40992256,0.00032,2]
[328308680,1717140651702,-1414.40992256,0.00032,2]
[328308681,1717140651712,-1414.40992256,0.00032,2]
[328308682,1717140651722,-1414.40992256,0.00032,2]
[328308683,1717140651732,-1414.40992256,0.00032,2]
[328308684,1717140651742,-1414.40992256,0.00032,2]
[328308685,1717140651751,-1414.40992256,0.00032,2]
[328308686,1717140651761,-1414.40992256,0.00032,2]
[328308687,1717140651771,-1414.40992256,0.00032,2]
[328308688,1717140651780,-1414.40992256,0.00032,2]
[328308689,1717140651789,-1414.40992256,0.00032,2]
[328308690,1717140651799,-1414.40992256,0.00032,2]
[328308691,1717140651812,-1414.40992256,0.00032,2]
[328308692,1717140651821,-1414.40992256,0.00032,2]
[328308693,1717140651831,-1414.40992256,0.00032,2]
[328308694,1717140651840,-1414.40992256,0.00032,2]
[328308695,1717140651851,-1414.40992256,0.00032,2]
[328308696,1717140651860,-1414.40992256,0.00032,2]
[328308697,1717140651869,-1414.40992256,0.00032,2]
[328308698,1717140651880,-1414.40992256,0.00032,2]
[328308699,1717140651889,-1414.40992256,0.00032,2]
[328308700,1717140651898,-1414.40992256,0.00032,2]
[328308701,1717140651908,-1414.40992256,0.00032,2]
[328308702,1717140651917,-1414.40992256,0.00032,2]
[328308703,1717140651927,-1414.40992256,0.00032,2]
[328308704,1717140651936,-1414.40992256,0.00032,2]
[328308705,1717140651945,-1414.40992256,0.00032,2]
[328308706,1717140651954,-1414.40992256,0.00032,2]
[328308707,1717140651964,-1414.40992256,0.00032,2]
[328308708,1717140651974,-1414.40992256,0.00032,2]
[328308709,1717140651984,-1414.40992256,0.00032,2]
[328308710,1717140651993,-1414.40992256,0.00032,2]
[328308711,1717140652002,-1414.40992256,0.00032,2]
[328308712,1717140652011,-1414.40992256,0.00032,2]
[328308713,1717140652020,-1414.40992256,0.00032,2]
[328308714,1717140652030,-1414.40992256,0.00032,2]
[328308715,1717140652039,-1414.40992256,0.00032,2]
[328308716,1717140652052,-1414.40992256,0.00032,2]
[328308717,1717140652062,-1414.40992256,0.00032,2]
[328308718,1717140652071,-1414.40992256,0.00032,2]
[328308719,1717140652080,-25000.0,0.00032002,2]
[328308720,1717140652091,-155.34367954,0.00032011,7]
[328308721,1717140652100,-7753.24,0.00032055,2]
[328308722,1717140652109,-2504.53,0.00032096,2]
[328308723,1717140652118,-5000.0,0.00032107,2]
[328308724,1717140652127,-2505.27,0.00032125,2]
[328308725,1717140652135,-15099.31606689,0.00032189,2]
[328308726,1717140652144,-254.463414,0.00032189,7]
[328308727,1717140652153,-156.960772,0.00032189,7]
[328308728,1717140652162,-151.0,0.00032189,7]
[328308729,1717140652171,-187.872506,0.00032189,7]
[328308730,1717140652180,-289.145472,0.00032189,7]
[328308731,1717140652189,-151.0,0.00032189,7]
[328308732,1717140652198,-151.0,0.00032189,7]
[328308733,1717140652207,-151.0,0.00032189,7]
[328308734,1717140652216,-151.0,0.00032189,7]
[328308735,1717140652225,-151.0,0.00032189,7]
[328308736,1717140652235,-151.0,0.00032189,7]
[328308737,1717140652244,-151.0,0.00032189,7]
[328308738,1717140652253,-151.858905,0.00032189,7]
[328308739,1717140652263,-151.0,0.00032189,7]
[328308740,1717140652272,-160.605763,0.00032189,7]
[328308741,1717140652282,-151.0,0.00032189,7]
[328308742,1717140652292,-200.445371,0.00032189,7]
[328308743,1717140652302,-151.0,0.00032189,7]
[328308744,1717140652311,-151.0,0.00032189,7]
[328308745,1717140652321,-157.69405,0.00032189,7]
[328308746,1717140652330,-151.0,0.00032189,7]
[328308747,1717140652341,-153.083724,0.00032189,7]
[328308748,1717140652351,-152.670873,0.00032189,7]
[328308749,1717140652360,-153.616626,0.00032189,7]
[328308750,1717140652370,-151.0,0.00032189,7]
[328308751,1717140652379,-151.0,0.00032189,7]
[328308752,1717140652390,-151.0,0.00032189,7]
[328308753,1717140652399,-151.0,0.00032189,7]
[328308754,1717140652410,-157.264683,0.00032189,7]
[328308755,1717140652419,-174.908699,0.00032189,7]
[328308756,1717140652428,-151.0,0.00032189,7]
[328308757,1717140652438,-151.0,0.00032189,7]
[328308758,1717140652447,-151.0,0.00032189,7]
[328308759,1717140652457,-151.0,0.00032189,7]
[328308760,1717140652466,-238.969586,0.00032189,7]
[328308761,1717140652475,-151.0,0.00032189,7]
[328308762,1717140652484,-151.0,0.00032189,7]
[328308763,1717140652493,-151.0,0.00032189,7]
[328308764,1717140652503,-151.0,0.00032189,7]
[328308765,1717140652512,-151.0,0.00032189,7]
[328308766,1717140652521,-151.0,0.00032189,7]
[328308767,1717140652530,-151.0,0.00032189,7]
[328308768,1717140652540,-151.0,0.00032189,7]
[328308769,1717140652548,-155.43182,0.00032189,7]
[328308770,1717140652557,-151.0,0.00032189,7]
[328308771,1717140652567,-151.0,0.00032189,7]
[328308772,1717140652576,-151.0,0.00032189,7]
[328308773,1717140652585,-151.0,0.00032189,7]
[328308774,1717140652596,-151.0,0.00032189,7]
[328308775,1717140652605,-151.0,0.00032189,7]
[328308776,1717140652615,-151.0,0.00032189,7]
[328308777,1717140652624,-154.180123,0.00032189,7]
[328308778,1717140652633,-151.0,0.00032189,7]
[328308779,1717140652643,-2502.86,0.00032289,2]
[328308780,1717140652652,-2504.53,0.00032303,2]
[328308781,1717140652661,-2506.76,0.00032325,2]
[328308782,1717140652670,-339.01,0.00032351,2]
[328308783,1717140652680,-157.1383684,0.00032363,7]
[328308784,1717140652689,-5000.0,0.00032371,2]
[328308785,1717140652698,-500.0,0.000324,11]
[328308786,1717140652707,-2502.86,0.00032413,2]
[328308787,1717140652717,-150.0,0.00032466,2]
[328308788,1717140652726,-150.0,0.00032466,2]
[328308789,1717140652735,-150.0,0.00032466,2]
[328308790,1717140652744,-150.0,0.00032466,2]
[328308791,1717140652754,-150.0,0.00032466,2]
[328308792,1717140652763,-150.0,0.00032466,2]
[328308793,1717140652772,-150.0,0.00032466,2]
[328308794,1717140652782,-150.0,0.00032466,2]
[328308795,1717140652791,-150.0,0.00032466,2]
[328308796,1717140652801,-150.0,0.00032466,2]
[328308797,1717140652814,-301.68,0.00032466,2]
[328308798,1717140652824,-500.0,0.000325,11]
[328308799,1717140652833,-2508.45,0.00032587,2]
[328308800,1717140652844,-168.5365863,0.0003259,2]
[328308801,1717140652854,-500.0,0.000326,11]
[328308802,1717140652863,-2506.76,0.00032612,2]
[328308803,1717140652873,-1123.19085573,0.00032647,2]
[328308804,1717140652885,-99301.47896429,0.0003265,4]
[328308805,1717140652895,-3771.80106427,0.0003265,3]
[328308806,1717140652904,-169031.2234993,0.0003265,3]
[328308807,1717140652914,-30013.5149669,0.0003265,3]
[328308808,1717140652923,-154.180626,0.0003265,7]
[328308809,1717140652932,-151.0,0.0003265,7]
[328308810,1717140652942,-151.0,0.0003265,7]
[328308811,1717140652951,-151.0,0.0003265,7]
[328308812,1717140652961,-151.0,0.0003265,7]
[328308813,1717140652970,-151.0,0.0003265,7]
[328308814,1717140652980,-151.0,0.0003265,7]
[328308815,1717140652989,-151.0,0.0003265,7]
[328308816,1717140652999,-151.0,0.0003265,7]
[328308817,1717140653008,-151.0,0.0003265,7]
[328308818,1717140653019,-151.0,0.0003265,7]
[328308819,1717140653029,-167.506297,0.0003265,7]
[328308820,1717140653038,-151.0,0.0003265,7]
[328308821,1717140653048,-153.636838,0.0003265,7]
[328308822,1717140653058,-151.0,0.0003265,7]
[328308823,1717140653069,-151.0,0.0003265,7]
[328308824,1717140653078,-151.0,0.0003265,7]
[328308825,1717140653087,-152.853696,0.0003265,7]
[328308826,1717140653099,-151.0,0.0003265,7]
[328308827,1717140653108,-165.670992,0.0003265,7]
[328308828,1717140653117,-151.0,0.0003265,7]
[328308829,1717140653126,-151.0,0.0003265,7]
[328308830,1717140653135,-151.0,0.0003265,7]
[328308831,1717140653144,-151.0,0.0003265,7]
[328308832,1717140653154,-151.0,0.0003265,7]
[328308833,1717140653164,-151.0,0.0003265,7]
[328308834,1717140653173,-151.0,0.0003265,7]
[328308835,1717140653183,-151.0,0.0003265,7]
[328308836,1717140653192,-151.0,0.0003265,7]
[328308837,1717140653202,-151.0,0.0003265,7]
[328308838,1717140653211,-151.0,0.0003265,7]
[328308839,1717140653221,-151.0,0.0003265,7]
[328308840,1717140653230,-151.0,0.0003265,7]
[328308841,1717140653240,-151.0,0.0003265,7]
[328308842,1717140653249,-151.0,0.0003265,7]
[328308843,1717140653258,-151.0,0.0003265,7]
[328308844,1717140653268,-10000.0,0.00032658,2]
[328308845,1717140653277,-189.43873095,0.0003266,3]
[328308846,1717140653287,-2505.27,0.00032685,2]
[328308847,1717140653296,-1827.95,0.00032696,2]
[328308848,1717140653306,-1247.93,0.000327,2]
[328308849,1717140653315,-1507.84,0.000327,2]
[328308850,1717140653324,-500.0,0.000327,11]
[328308851,1717140653334,-1250.89,0.00032715,2]
[328308852,1717140653344,-24430.10081273,0.0003278,3]
[328308853,1717140653354,-529.0,0.000328,11]
[328308854,1717140653363,-133197.91295203,0.00032869,5]
[328308855,1717140653372,-1528.97290063,0.00032869,2]
[328308856,1717140653384,-3445.03922473,0.00032869,2]
[328308857,1717140653393,-1156.26698675,0.00032869,2]
[328308858,1717140653407,-1123.19085573,0.00032873,2]
[328308859,1717140653416,-150.0,0.00032875,7]
[328308860,1717140653426,-500.0,0.00032876,11]
[328308861,1717140653436,-500.0,0.00032876,11]
[328308862,1717140653445,-206.46295016,0.00032876,11]
[328308863,1717140653455,-500.0,0.00032876,11]
[328308864,1717140653465,-323.44726747,0.00032876,11]
[328308865,1717140653475,-500.0,0.00032876,11]
[328308866,1717140653485,-500.0,0.00032876,11]
[328308867,1717140653495,-500.0,0.00032876,11]
[328308868,1717140653505,-500.0,0.00032876,11]
[328308869,1717140653514,-500.0,0.00032876,11]
[328308870,1717140653523,-313.97294901,0.00032876,11]
[328308871,1717140653532,-500.0,0.00032876,11]
[328308872,1717140653541,-500.0,0.00032876,11]
[328308873,1717140653550,-500.0,0.00032876,11]
[328308874,1717140653560,-500.0,0.00032876,11]
[328308875,1717140653569,-500.0,0.00032876,11]
[328308876,1717140653578,-500.0,0.00032876,11]
[328308877,1717140653588,-500.0,0.00032876,11]
[328308878,1717140653598,-500.0,0.00032876,11]
[328308879,1717140653608,-500.0,0.00032876,11]
[328308880,1717140653617,-500.0,0.00032876,11]
[328308881,1717140653626,-500.0,0.00032876,11]
[328308882,1717140653635,-500.0,0.00032876,11]
[328308883,1717140653644,-500.0,0.00032876,11]
[328308884,1717140653653,-500.0,0.00032876,11]
[328308885,1717140653663,-509.88718224,0.00032876,11]
[328308886,1717140653808,-500.0,0.00032876,11]
[328308887,1717140653819,-500.0,0.00032876,11]
[328308888,1717140653829,-500.0,0.00032876,11]
[328308889,1717140653839,-500.0,0.00032876,11]
[328308890,1717140653849,-500.0,0.00032876,11]
[328308891,1717140653859,-500.0,0.00032876,11]
[328308892,1717140653870,-509.87239773,0.00032876,11]
[328308893,1717140653882,-500.0,0.00032876,11]
[328308894,1717140653891,-603.28,0.00032876,11]
[328308895,1717140653901,-500.0,0.00032876,11]
[328308896,1717140653912,-500.0,0.00032876,11]
[328308897,1717140653921,-500.0,0.00032876,11]
[328308898,1717140653930,-500.0,0.00032876,11]
[328308899,1717140653940,-500.0,0.00032876,11]
[328308900,1717140653950,-500.0,0.00032876,11]
[328308901,1717140653959,-336.15,0.00032876,11]
[328308902,1717140653968,-500.0,0.00032876,11]
[328308903,1717140653978,-500.0,0.00032876,11]
[328308904,1717140653987,-500.0,0.00032876,11]
[328308905,1717140653996,-433.96,0.00032876,11]
[328308906,1717140654005,-500.0,0.00032876,11]
[328308907,1717140654015,-500.0,0.00032876,11]
[328308908,1717140654025,-500.0,0.00032876,11]
[328308909,1717140654034,-500.0,0.00032876,11]
[328308910,1717140654043,-500.0,0.00032876,11]
[328308911,1717140654053,-500.0,0.00032876,11]
[328308912,1717140654062,-500.0,0.00032876,11]
[328308913,1717140654072,-500.0,0.00032876,11]
[328308914,1717140654081,-500.0,0.00032876,11]
[328308915,1717140654090,-500.0,0.00032876,11]
[328308916,1717140654100,-500.0,0.00032876,11]
[328308917,1717140654109,-500.0,0.00032876,11]
[328308918,1717140654118,-500.0,0.00032876,11]
[328308919,1717140654127,-608.24971902,0.00032876,11]
[328308920,1717140654137,-500.0,0.00032876,11]
[328308921,1717140654146,-500.0,0.00032876,11]
[328308922,1717140654155,-500.0,0.00032876,11]
[328308923,1717140654165,-500.0,0.00032876,11]
[328308924,1717140654174,-500.0,0.00032876,11]
[328308925,1717140654183,-500.0,0.00032876,11]
[328308926,1717140654193,-500.0,0.00032876,11]
[328308927,1717140654202,-500.0,0.00032876,11]
[328308928,1717140654212,-500.0,0.00032876,11]
[328308929,1717140654221,-500.0,0.00032876,11]
[328308930,1717140654230,-500.0,0.00032876,11]
[328308931,1717140654240,-500.0,0.00032876,11]
[328308932,1717140654249,-312.60100101,0.00032876,11]
[328308933,1717140654259,-500.0,0.00032876,11]
[328308934,1717140654268,-500.0,0.00032876,11]
[328308935,1717140654278,-212.56,0.00032876,11]
[328308936,1717140654287,-501.40589988,0.00032876,11]
[328308937,1717140654296,-500.0,0.00032876,11]
[328308938,1717140654306,-527.7,0.00032876,11]
[328308939,1717140654315,-500.0,0.00032876,11]
[328308940,1717140654324,-500.0,0.00032876,11]
[328308941,1717140654334,-500.0,0.00032876,11]
[328308942,1717140654344,-254.43555097,0.00032876,11]
[328308943,1717140654353,-500.0,0.00032876,11]
[328308944,1717140654363,-419.32,0.00032876,11]
[328308945,1717140654373,-573.4,0.00032876,11]
[328308946,1717140654382,-500.0,0.00032876,11]
[328308947,1717140654391,-500.0,0.00032876,11]
[328308948,1717140654400,-255.8094899,0.00032876,11]
[328308949,1717140654409,-260.25650974,0.00032876,11]
[328308950,1717140654419,-296.23871599,0.00032876,11]
[328308951,1717140654427,-154.83463362,0.00032876,11]
[328308952,1717140654436,-500.0,0.00032876,11]
[328308953,1717140654445,-500.0,0.00032876,11]
[328308954,1717140654455,-500.0,0.00032876,11]
[328308955,1717140654464,-500.0,0.00032876,11]
[328308956,1717140654473,-588.15,0.00032876,11]
[328308957,1717140654483,-515.88881175,0.00032876,11]
[328308958,1717140654492,-500.0,0.00032876,11]
[328308959,1717140654501,-509.02598427,0.00032876,11]
[328308960,1717140654510,-500.0,0.00032876,11]
[328308961,1717140654519,-367.90327309,0.00032876,11]
[328308962,1717140654528,-291.17776677,0.00032876,11]
[328308963,1717140654537,-511.17997453,0.00032876,11]
[328308964,1717140654547,-500.0,0.00032876,11]
[328308965,1717140654555,-500.0,0.00032876,11]
[328308966,1717140654565,-500.0,0.00032876,11]
[328308967,1717140654574,-500.0,0.00032876,11]
[328308968,1717140654583,-636.18115143,0.00032876,11]
[328308969,1717140654593,-312.76741599,0.00032876,11]
[328308970,1717140654602,-514.21,0.00032876,2]
[328308971,1717140654611,-398.4423228,0.00032876,11]
[328308972,1717140654620,-500.0,0.00032876,11]
[328308973,1717140654629,-189.30103207,0.00032876,11]
[328308974,1717140654638,-500.0,0.00032876,11]
[328308975,1717140654648,-500.0,0.00032876,11]
[328308976,1717140654657,-500.0,0.00032876,11]
[328308977,1717140654666,-500.0,0.00032876,11]
[328308978,1717140654675,-500.0,0.00032876,11]
[328308979,1717140654684,-549.71663372,0.00032876,11]
[328308980,1717140654694,-500.0,0.00032876,11]
[328308981,1717140654703,-500.0,0.00032876,11]
[328308982,1717140654712,-500.0,0.00032876,11]
[328308983,1717140654722,-500.0,0.00032876,11]
[328308984,1717140654731,-428.31244487,0.00032876,11]
[328308985,1717140654741,-500.0,0.00032876,11]
[328308986,1717140654750,-500.0,0.00032876,11]
[328308987,1717140654760,-500.0,0.00032876,11]
[328308988,1717140654769,-500.0,0.00032876,11]
[328308989,1717140654779,-500.0,0.00032876,11]
[328308990,1717140654788,-500.0,0.00032876,11]
[328308991,1717140654798,-518.41,0.00032876,11]